[Event "*** Titled Tuesday Blitz"]
[Site "Chess.com"]
[Date "2020.04.07"]
[Round "1"]
[White "IMinTheWings"]
[Black "kungmongmanh"]
[Result "0-1"]
[WhiteElo "2164"]
[BlackElo "2547"]
[TimeControl "180+1"]
[EndTime "13:06:43 PDT"]
[Termination "kungmongmanh won on time"]

1. c4 {[%clk 0:02:45.8]} 1... Nf6 {[%clk 0:02:59.3]} 2. Nc3 {[%clk 0:02:46]}
2... e6 {[%clk 0:02:58]} 3. e4 {[%clk 0:02:46.5]} 3... d6 {[%clk 0:02:48.5]} 4.
d4 {[%clk 0:02:45.7]} 4... Be7 {[%clk 0:02:47.5]} 5. Be2 {[%clk 0:02:43]} 5...
O-O {[%clk 0:02:47.4]} 6. Be3 {[%clk 0:02:41]} 6... c5 {[%clk 0:02:47.3]} 7. d5
{[%clk 0:02:41]} 7... exd5 {[%clk 0:02:46.4]} 8. cxd5 {[%clk 0:02:41.9]} 8... a6
{[%clk 0:02:45.6]} 9. g4 {[%clk 0:02:41.4]} 9... b5 {[%clk 0:02:44.3]} 10. g5
{[%clk 0:02:38.4]} 10... Nfd7 {[%clk 0:02:42.8]} 11. h4 {[%clk 0:02:37.1]} 11...
b4 {[%clk 0:02:35.8]} 12. Nb1 {[%clk 0:02:35.4]} 12... f5 {[%clk 0:02:27]} 13.
exf5 {[%clk 0:02:26.9]} 13... Rxf5 {[%clk 0:02:26.6]} 14. Bg4 {[%clk 0:02:17.3]}
14... Rf8 {[%clk 0:02:23]} 15. Nf3 {[%clk 0:02:11.1]} 15... Nb6 {[%clk
0:02:16.4]} 16. Nfd2 {[%clk 0:01:46.9]} 16... Bxg4 {[%clk 0:02:07.2]} 17. Qxg4
{[%clk 0:01:43.3]} 17... Qd7 {[%clk 0:02:07.1]} 18. Qe4 {[%clk 0:01:33.5]} 18...
Rf5 {[%clk 0:01:50.7]} 19. a3 {[%clk 0:01:32.8]} 19... Nxd5 {[%clk 0:01:42.7]}
20. axb4 {[%clk 0:01:32.9]} 20... cxb4 {[%clk 0:01:42.8]} 21. Ra5 {[%clk
0:01:29.2]} 21... Re5 {[%clk 0:01:27.5]} 22. Qf3 {[%clk 0:01:08.4]} 22... Qc6
{[%clk 0:01:18.7]} 23. O-O {[%clk 0:00:51.7]} 23... Nxe3 {[%clk 0:01:15.9]} 24.
Qxc6 {[%clk 0:00:51.5]} 24... Nxc6 {[%clk 0:01:13.1]} 25. Rxe5 {[%clk
0:00:51.9]} 25... Nxf1 {[%clk 0:01:04.4]} 26. Rxe7 {[%clk 0:00:45]} 26... Nxe7
{[%clk 0:01:03.5]} 27. Nxf1 {[%clk 0:00:45]} 27... Rc8 {[%clk 0:01:01.9]} 28.
Nbd2 {[%clk 0:00:42]} 28... Rc2 {[%clk 0:00:59.6]} 29. Ne4 {[%clk 0:00:40.4]}
29... d5 {[%clk 0:00:57.2]} 30. Nd6 {[%clk 0:00:39.4]} 30... Rxb2 {[%clk
0:00:56]} 31. Ne3 {[%clk 0:00:18.1]} 31... b3 {[%clk 0:00:55.5]} 0-1

[Event "*** Titled Tuesday Blitz"]
[Site "Chess.com"]
[Date "2020.04.07"]
[Round "1"]
[White "Paralinch"]
[Black "Usurpov"]
[Result "1-0"]
[WhiteElo "2938"]
[BlackElo "2472"]
[TimeControl "180+1"]
[EndTime "13:06:44 PDT"]
[Termination "Paralinch won by resignation"]

1. e4 {[%clk 0:03:00.9]} 1... c5 {[%clk 0:02:59.1]} 2. Nf3 {[%clk 0:03:00.2]}
2... e6 {[%clk 0:02:58.1]} 3. d4 {[%clk 0:03:00.1]} 3... cxd4 {[%clk 0:02:56.6]}
4. Nxd4 {[%clk 0:03:01]} 4... Nf6 {[%clk 0:02:56.9]} 5. Nc3 {[%clk 0:03:00.3]}
5... Nc6 {[%clk 0:02:57.1]} 6. Ndb5 {[%clk 0:03:00.4]} 6... d6 {[%clk
0:02:54.9]} 7. Bf4 {[%clk 0:02:55.9]} 7... e5 {[%clk 0:02:54.5]} 8. Bg5 {[%clk
0:02:56.1]} 8... a6 {[%clk 0:02:54.5]} 9. Na3 {[%clk 0:02:56.5]} 9... Be6 {[%clk
0:02:54.4]} 10. Nc4 {[%clk 0:02:54.6]} 10... Rb8 {[%clk 0:02:54.5]} 11. h4
{[%clk 0:02:50.6]} 11... b5 {[%clk 0:02:05.2]} 12. Bxf6 {[%clk 0:02:42.9]} 12...
gxf6 {[%clk 0:01:58.3]} 13. Ne3 {[%clk 0:02:42.5]} 13... Ne7 {[%clk 0:01:52.4]}
14. Qf3 {[%clk 0:02:26.6]} 14... b4 {[%clk 0:01:24.5]} 15. Ncd5 {[%clk
0:02:25.8]} 15... Nxd5 {[%clk 0:01:20.6]} 16. Nxd5 {[%clk 0:02:26.7]} 16... f5
{[%clk 0:01:07.2]} 17. exf5 {[%clk 0:02:19.6]} 17... Bxd5 {[%clk 0:01:06.9]} 18.
Qxd5 {[%clk 0:02:19.4]} 18... Qb6 {[%clk 0:01:05.6]} 19. Bc4 {[%clk 0:02:16.2]}
19... Rb7 {[%clk 0:01:01.4]} 20. O-O-O {[%clk 0:01:56.8]} 20... Rg8 {[%clk
0:00:51.5]} 21. g3 {[%clk 0:01:45.6]} 21... Rg4 {[%clk 0:00:37.2]} 22. Kb1
{[%clk 0:01:39.3]} 22... Bg7 {[%clk 0:00:22.4]} 23. Rhe1 {[%clk 0:01:33.2]}
23... Kf8 {[%clk 0:00:20.6]} 24. Bb3 {[%clk 0:01:25.6]} 24... Rd4 {[%clk
0:00:20.2]} 25. Rxd4 {[%clk 0:01:24.4]} 25... exd4 {[%clk 0:00:21.1]} 26. Qe4
{[%clk 0:01:02.5]} 26... Bf6 {[%clk 0:00:20.8]} 27. Qf4 {[%clk 0:00:40.7]} 27...
Re7 {[%clk 0:00:16.9]} 28. Rd1 {[%clk 0:00:35.6]} 28... Kg7 {[%clk 0:00:11.2]}
29. g4 {[%clk 0:00:34.8]} 29... a5 {[%clk 0:00:09.4]} 30. g5 {[%clk 0:00:34.2]}
30... Be5 {[%clk 0:00:09.1]} 31. f6+ {[%clk 0:00:32.7]} 1-0

[Event "*** Titled Tuesday Blitz"]
[Site "Chess.com"]
[Date "2020.04.07"]
[Round "1"]
[White "superstructure"]
[Black "VladDobrov"]
[Result "0-1"]
[WhiteElo "2452"]
[BlackElo "2863"]
[TimeControl "180+1"]
[EndTime "13:06:44 PDT"]
[Termination "VladDobrov won by resignation"]

1. e4 {[%clk 0:03:00.7]} 1... e5 {[%clk 0:02:59.1]} 2. Nf3 {[%clk 0:03:00.3]}
2... Nc6 {[%clk 0:02:59.4]} 3. Bb5 {[%clk 0:02:59.7]} 3... Nf6 {[%clk
0:02:59.6]} 4. d3 {[%clk 0:02:56.6]} 4... Bc5 {[%clk 0:02:58]} 5. Bxc6 {[%clk
0:02:45.9]} 5... dxc6 {[%clk 0:02:57.1]} 6. Qe2 {[%clk 0:02:46.3]} 6... Qe7
{[%clk 0:02:54.4]} 7. Nbd2 {[%clk 0:02:43.2]} 7... a5 {[%clk 0:02:52.2]} 8. Nc4
{[%clk 0:02:41.3]} 8... Nd7 {[%clk 0:02:51.6]} 9. Bd2 {[%clk 0:02:34.7]} 9... a4
{[%clk 0:02:50.9]} 10. a3 {[%clk 0:02:32.2]} 10... f6 {[%clk 0:02:44.5]} 11. g4
{[%clk 0:02:26.6]} 11... Nb6 {[%clk 0:02:43.3]} 12. Na5 {[%clk 0:02:16.1]} 12...
Bxg4 {[%clk 0:02:05.4]} 13. Nxb7 {[%clk 0:02:14.6]} 13... O-O {[%clk 0:01:58.1]}
14. Rg1 {[%clk 0:02:08.1]} 14... Bh5 {[%clk 0:01:51.3]} 15. Nxc5 {[%clk
0:02:03.4]} 15... Qxc5 {[%clk 0:01:52.2]} 16. Bb4 {[%clk 0:02:02.9]} 16... Qb5
{[%clk 0:01:52.6]} 17. Bxf8 {[%clk 0:02:02.1]} 17... Qxb2 {[%clk 0:01:43.5]} 18.
Kd2 {[%clk 0:01:59.5]} 18... Nc4+ {[%clk 0:01:37.6]} 19. dxc4 {[%clk 0:01:12.7]}
19... Rd8+ {[%clk 0:01:36.8]} 20. Qd3 {[%clk 0:01:09.4]} 20... Rxd3+ {[%clk
0:01:34.9]} 21. Kxd3 {[%clk 0:01:10.3]} 21... Bxf3 {[%clk 0:01:15.1]} 22. Bc5
{[%clk 0:01:09.3]} 22... Qb8 {[%clk 0:01:13.2]} 23. Ke3 {[%clk 0:01:06.9]} 23...
Bh5 {[%clk 0:01:12.7]} 24. f3 {[%clk 0:01:04.6]} 24... Qc8 {[%clk 0:01:10.1]}
25. Rad1 {[%clk 0:01:01.8]} 25... Be8 {[%clk 0:00:57.2]} 26. Rd3 {[%clk
0:00:41.3]} 26... Kf7 {[%clk 0:00:56.9]} 27. Kd2 {[%clk 0:00:32.5]} 27... Qh3
{[%clk 0:00:53.4]} 28. Kc3 {[%clk 0:00:23.9]} 28... Qxh2 {[%clk 0:00:53.6]} 29.
Rd8 {[%clk 0:00:18.1]} 29... Qe2 {[%clk 0:00:45]} 30. Rc8 {[%clk 0:00:18.5]}
30... Qxf3+ {[%clk 0:00:45]} 31. Kb4 {[%clk 0:00:19]} 31... g5 {[%clk
0:00:35.6]} 32. Rxc7+ {[%clk 0:00:19.4]} 32... Kg6 {[%clk 0:00:35.8]} 33. Re7
{[%clk 0:00:19.1]} 33... Bf7 {[%clk 0:00:34.3]} 34. Kxa4 {[%clk 0:00:16]} 34...
Qxe4 {[%clk 0:00:34.1]} 35. Kb4 {[%clk 0:00:14.5]} 35... Qxc4+ {[%clk
0:00:34.1]} 0-1

[Event "*** Titled Tuesday Blitz"]
[Site "Chess.com"]
[Date "2020.04.07"]
[Round "1"]
[White "Didici"]
[Black "Lord_Neezy"]
[Result "1-0"]
[WhiteElo "2650"]
[BlackElo "2317"]
[TimeControl "180+1"]
[EndTime "13:06:45 PDT"]
[Termination "Didici won on time"]

1. e4 {[%clk 0:03:00]} 1... e6 {[%clk 0:02:59.7]} 2. d4 {[%clk 0:02:59.4]} 2...
d5 {[%clk 0:03:00.3]} 3. Bd3 {[%clk 0:02:58.3]} 3... dxe4 {[%clk 0:02:57.7]} 4.
Bxe4 {[%clk 0:02:59.2]} 4... Nf6 {[%clk 0:02:55.7]} 5. Bf3 {[%clk 0:02:59.4]}
5... Be7 {[%clk 0:02:55.2]} 6. Ne2 {[%clk 0:02:59.1]} 6... c5 {[%clk 0:02:51]}
7. O-O {[%clk 0:02:58.5]} 7... O-O {[%clk 0:02:50.6]} 8. c4 {[%clk 0:02:56.9]}
8... Nbd7 {[%clk 0:02:42]} 9. Nbc3 {[%clk 0:02:55.7]} 9... cxd4 {[%clk
0:02:39.2]} 10. Nxd4 {[%clk 0:02:56.6]} 10... Ne5 {[%clk 0:02:34.8]} 11. Be2
{[%clk 0:02:56.5]} 11... Bd7 {[%clk 0:02:30.1]} 12. Bf4 {[%clk 0:02:55.3]} 12...
Ng6 {[%clk 0:02:17.1]} 13. Bg3 {[%clk 0:02:54.7]} 13... a6 {[%clk 0:02:14.1]}
14. Qb3 {[%clk 0:02:36.5]} 14... Qc8 {[%clk 0:02:04.2]} 15. Bf3 {[%clk
0:02:24.3]} 15... Ra7 {[%clk 0:01:52.8]} 16. Rfd1 {[%clk 0:02:18.4]} 16... Rd8
{[%clk 0:01:44.2]} 17. Na4 {[%clk 0:02:12.9]} 17... Bxa4 {[%clk 0:01:24.3]} 18.
Qxa4 {[%clk 0:02:13.8]} 18... Bc5 {[%clk 0:01:21.5]} 19. Nb3 {[%clk 0:02:12.4]}
19... b6 {[%clk 0:01:00.4]} 20. Nxc5 {[%clk 0:01:59.7]} 20... bxc5 {[%clk
0:00:59.4]} 21. Rxd8+ {[%clk 0:01:38.1]} 21... Qxd8 {[%clk 0:00:59]} 22. Qc6
{[%clk 0:01:36.7]} 22... e5 {[%clk 0:00:28.3]} 23. Qxc5 {[%clk 0:01:26.2]} 23...
Rc7 {[%clk 0:00:25.9]} 24. Qb6 {[%clk 0:01:23.3]} 24... Qc8 {[%clk 0:00:23.9]}
25. b3 {[%clk 0:01:17.4]} 25... h5 {[%clk 0:00:19.4]} 26. h4 {[%clk 0:01:13.1]}
26... Rc5 {[%clk 0:00:16]} 27. Rd1 {[%clk 0:01:10]} 27... Kh7 {[%clk 0:00:14.1]}
28. Rd8 {[%clk 0:01:03.3]} 28... Qc7 {[%clk 0:00:09.6]} 29. Qxc7 {[%clk
0:01:01.9]} 29... Rxc7 {[%clk 0:00:10.5]} 30. Ra8 {[%clk 0:00:56]} 30... Rd7
{[%clk 0:00:02.4]} 31. Rxa6 {[%clk 0:00:55.8]} 31... e4 {[%clk 0:00:02.2]} 32.
Be2 {[%clk 0:00:53.2]} 32... Rd2 {[%clk 0:00:01.9]} 33. Kf1 {[%clk 0:00:52.5]}
1-0

[Event "*** Titled Tuesday Blitz"]
[Site "Chess.com"]
[Date "2020.04.07"]
[Round "1"]
[White "alexwinter25"]
[Black "timator"]
[Result "0-1"]
[WhiteElo "2334"]
[BlackElo "2674"]
[TimeControl "180+1"]
[EndTime "13:06:46 PDT"]
[Termination "timator won by resignation"]

1. e4 {[%clk 0:03:00.9]} 1... c5 {[%clk 0:02:43.6]} 2. Nf3 {[%clk 0:03:00.5]}
2... e6 {[%clk 0:02:43.1]} 3. d4 {[%clk 0:03:00.6]} 3... cxd4 {[%clk 0:02:44]}
4. c3 {[%clk 0:03:01.3]} 4... Nf6 {[%clk 0:02:37.1]} 5. Bd3 {[%clk 0:03:01]}
5... d6 {[%clk 0:02:36.2]} 6. O-O {[%clk 0:03:00.3]} 6... Be7 {[%clk 0:02:36.7]}
7. cxd4 {[%clk 0:03:00.5]} 7... O-O {[%clk 0:02:37.3]} 8. Nc3 {[%clk 0:02:59.9]}
8... Nc6 {[%clk 0:02:37.9]} 9. h3 {[%clk 0:02:59.8]} 9... b6 {[%clk 0:02:36.5]}
10. Qe2 {[%clk 0:02:59.3]} 10... Bb7 {[%clk 0:02:36]} 11. Bf4 {[%clk 0:02:57.8]}
11... Nb4 {[%clk 0:02:32.6]} 12. Rfe1 {[%clk 0:02:44.5]} 12... Nxd3 {[%clk
0:02:30]} 13. Qxd3 {[%clk 0:02:45.4]} 13... d5 {[%clk 0:02:30.5]} 14. exd5
{[%clk 0:02:42.5]} 14... Nxd5 {[%clk 0:02:31.4]} 15. Nxd5 {[%clk 0:02:40.5]}
15... Qxd5 {[%clk 0:02:32.3]} 16. Re5 {[%clk 0:02:37.6]} 16... Qd7 {[%clk
0:02:32]} 17. Rae1 {[%clk 0:02:30]} 17... Rfd8 {[%clk 0:02:30.4]} 18. Ng5 {[%clk
0:02:24.2]} 18... Bxg5 {[%clk 0:02:19.5]} 19. Bxg5 {[%clk 0:02:23.8]} 19... Qxd4
{[%clk 0:02:19.7]} 20. Qxd4 {[%clk 0:02:15.9]} 20... Rxd4 {[%clk 0:02:20.6]} 21.
Be7 {[%clk 0:02:05.9]} 21... Rd7 {[%clk 0:02:17.6]} 22. Bb4 {[%clk 0:02:03]}
22... Rc8 {[%clk 0:02:16.5]} 23. a3 {[%clk 0:02:02]} 23... Bd5 {[%clk
0:02:09.7]} 24. Bc3 {[%clk 0:02:01.7]} 24... f6 {[%clk 0:02:08.1]} 25. R5e3
{[%clk 0:01:59.5]} 25... Kf7 {[%clk 0:02:07.9]} 26. Rg3 {[%clk 0:01:59.9]} 26...
e5 {[%clk 0:02:06.3]} 27. Rge3 {[%clk 0:01:55.5]} 27... Bc4 {[%clk 0:02:00.7]}
28. f3 {[%clk 0:01:54.5]} 28... Rcd8 {[%clk 0:01:59.2]} 29. h4 {[%clk
0:01:49.8]} 29... h5 {[%clk 0:01:58.1]} 30. Kf2 {[%clk 0:01:48.8]} 30... a5
{[%clk 0:01:48.7]} 31. Kg3 {[%clk 0:01:46.5]} 31... Kg6 {[%clk 0:01:44]} 32. Kf2
{[%clk 0:01:44.2]} 32... Kf5 {[%clk 0:01:42.6]} 33. g3 {[%clk 0:01:42.9]} 33...
Rd2+ {[%clk 0:01:31.1]} 34. Bxd2 {[%clk 0:01:37.3]} 34... Rxd2+ {[%clk 0:01:32]}
35. Kg1 {[%clk 0:01:37]} 35... Rxb2 {[%clk 0:01:32]} 36. Rc3 {[%clk 0:01:32.8]}
36... Bd5 {[%clk 0:01:14.4]} 37. Rd1 {[%clk 0:01:19.6]} 37... Ke6 {[%clk
0:01:04.1]} 38. Rcd3 {[%clk 0:01:15.6]} 38... Bc4 {[%clk 0:01:04.2]} 39. Rc3
{[%clk 0:01:06.6]} 39... b5 {[%clk 0:01:00.6]} 40. a4 {[%clk 0:01:06.2]} 40...
Bb3 {[%clk 0:00:53.6]} 41. Rc6+ {[%clk 0:01:01.8]} 41... Kf5 {[%clk 0:00:50.6]}
42. Rd7 {[%clk 0:00:53]} 42... bxa4 {[%clk 0:00:44.8]} 43. Rxg7 {[%clk
0:00:52.8]} 43... a3 {[%clk 0:00:43.7]} 44. Rf7 {[%clk 0:00:50.4]} 44... Bxf7
{[%clk 0:00:42.6]} 45. Ra6 {[%clk 0:00:47]} 45... a2 {[%clk 0:00:38.3]} 46. Rxa5
{[%clk 0:00:46.5]} 46... Rb1+ {[%clk 0:00:38.7]} 47. Kh2 {[%clk 0:00:45.8]}
47... a1=Q {[%clk 0:00:39.6]} 48. g4+ {[%clk 0:00:46.7]} 48... hxg4 {[%clk
0:00:39.4]} 49. fxg4+ {[%clk 0:00:47.6]} 49... Kxg4 {[%clk 0:00:39.9]} 0-1

[Event "*** Titled Tuesday Blitz"]
[Site "Chess.com"]
[Date "2020.04.07"]
[Round "1"]
[White "nochewycandy"]
[Black "MixMasterChess"]
[Result "1-0"]
[WhiteElo "2526"]
[BlackElo "2107"]
[TimeControl "180+1"]
[EndTime "13:06:48 PDT"]
[Termination "nochewycandy won by resignation"]

1. e4 {[%clk 0:03:00.9]} 1... e6 {[%clk 0:02:59.9]} 2. d4 {[%clk 0:03:00.8]}
2... d5 {[%clk 0:03:00.4]} 3. Bd3 {[%clk 0:03:01.7]} 3... c5 {[%clk 0:02:57.8]}
4. exd5 {[%clk 0:03:01.5]} 4... exd5 {[%clk 0:02:57.4]} 5. dxc5 {[%clk
0:03:02.4]} 5... Bxc5 {[%clk 0:02:54.3]} 6. Nf3 {[%clk 0:03:02.5]} 6... Nf6
{[%clk 0:02:53.5]} 7. Qe2+ {[%clk 0:03:01.9]} 7... Qe7 {[%clk 0:02:41.7]} 8.
Qxe7+ {[%clk 0:03:01.3]} 8... Kxe7 {[%clk 0:02:40.7]} 9. O-O {[%clk 0:03:00.1]}
9... Re8 {[%clk 0:02:36.4]} 10. Bg5 {[%clk 0:02:56.7]} 10... Be6 {[%clk
0:02:31.9]} 11. Nc3 {[%clk 0:02:53.8]} 11... Kf8 {[%clk 0:02:21.4]} 12. Bxf6
{[%clk 0:02:53.5]} 12... gxf6 {[%clk 0:02:20.7]} 13. Rad1 {[%clk 0:02:54]} 13...
Nc6 {[%clk 0:02:18.7]} 14. Bxh7 {[%clk 0:02:51.4]} 14... f5 {[%clk 0:02:15.3]}
15. Nxd5 {[%clk 0:02:48.8]} 15... Kg7 {[%clk 0:02:09.1]} 16. Nc7 {[%clk
0:02:32.1]} 16... Kxh7 {[%clk 0:02:06.4]} 17. Ng5+ {[%clk 0:02:32]} 17... Kg6
{[%clk 0:02:04.1]} 18. Ngxe6 {[%clk 0:02:24.5]} 18... fxe6 {[%clk 0:02:03.7]}
19. Nxa8 {[%clk 0:02:25.1]} 19... Rxa8 {[%clk 0:02:02.9]} 20. c3 {[%clk
0:02:25.6]} 20... Ne5 {[%clk 0:01:48.6]} 21. Rfe1 {[%clk 0:02:25.6]} 21... Kf6
{[%clk 0:01:44.2]} 22. h3 {[%clk 0:02:14.3]} 22... f4 {[%clk 0:01:35.6]} 23. b4
{[%clk 0:01:54.5]} 23... Bb6 {[%clk 0:01:34.8]} 24. a4 {[%clk 0:01:55.1]} 24...
a5 {[%clk 0:01:31.5]} 25. bxa5 {[%clk 0:01:51.8]} 25... Rxa5 {[%clk 0:01:25.4]}
26. Rb1 {[%clk 0:01:51.4]} 26... Ra6 {[%clk 0:01:15.2]} 27. Rb5 {[%clk
0:01:15.8]} 27... Nd3 {[%clk 0:01:13.1]} 28. Re2 {[%clk 0:01:15.7]} 28... e5
{[%clk 0:00:56.8]} 29. Kf1 {[%clk 0:01:04.1]} 29... Ba5 {[%clk 0:00:32.5]} 30.
Rd2 {[%clk 0:01:00.5]} 30... e4 {[%clk 0:00:29]} 31. Re2 {[%clk 0:00:59]} 31...
Bxc3 {[%clk 0:00:21.4]} 32. Rxe4 {[%clk 0:00:58]} 32... Be5 {[%clk 0:00:16.3]}
33. Rd5 {[%clk 0:00:52.2]} 33... Kf5 {[%clk 0:00:14.9]} 34. f3 {[%clk
0:00:47.7]} 34... Rd6 {[%clk 0:00:13]} 35. Rexe5+ {[%clk 0:00:44.1]} 35... Nxe5
{[%clk 0:00:12.6]} 36. Rxd6 {[%clk 0:00:45]} 1-0

[Event "*** Titled Tuesday Blitz"]
[Site "Chess.com"]
[Date "2020.04.07"]
[Round "1"]
[White "LimeInTheCoconut"]
[Black "vaps"]
[Result "1-0"]
[WhiteElo "2515"]
[BlackElo "1984"]
[TimeControl "180+1"]
[EndTime "13:06:49 PDT"]
[Termination "LimeInTheCoconut won on time"]

1. Nf3 {[%clk 0:03:00.9]} 1... c5 {[%clk 0:02:58.7]} 2. c4 {[%clk 0:02:59.7]}
2... Nc6 {[%clk 0:02:56.5]} 3. Nc3 {[%clk 0:02:57.7]} 3... g6 {[%clk 0:02:54.6]}
4. e3 {[%clk 0:02:57.2]} 4... Nf6 {[%clk 0:02:53.7]} 5. d4 {[%clk 0:02:55.5]}
5... cxd4 {[%clk 0:02:53.8]} 6. exd4 {[%clk 0:02:56.4]} 6... d5 {[%clk
0:02:54.2]} 7. cxd5 {[%clk 0:02:56.1]} 7... Nxd5 {[%clk 0:02:54.8]} 8. Qb3
{[%clk 0:02:55.5]} 8... e6 {[%clk 0:02:52.3]} 9. Bb5 {[%clk 0:02:54.1]} 9... a6
{[%clk 0:02:31.3]} 10. Bxc6+ {[%clk 0:02:53.5]} 10... bxc6 {[%clk 0:02:32.2]}
11. O-O {[%clk 0:02:52.2]} 11... Bg7 {[%clk 0:02:31.7]} 12. Qa3 {[%clk
0:02:46.1]} 12... Qe7 {[%clk 0:02:23.2]} 13. Qxe7+ {[%clk 0:02:43.1]} 13... Kxe7
{[%clk 0:02:24.1]} 14. Bd2 {[%clk 0:02:41.2]} 14... Rd8 {[%clk 0:02:18.3]} 15.
Rac1 {[%clk 0:02:32.7]} 15... Rb8 {[%clk 0:02:00]} 16. b3 {[%clk 0:02:31.2]}
16... Nb4 {[%clk 0:01:53.5]} 17. Bg5+ {[%clk 0:02:14.1]} 17... f6 {[%clk
0:01:50.6]} 18. Bf4 {[%clk 0:02:14.4]} 18... Rb7 {[%clk 0:01:41.8]} 19. Rfd1
{[%clk 0:02:06.6]} 19... g5 {[%clk 0:01:37.3]} 20. Be3 {[%clk 0:02:04.4]} 20...
Nd5 {[%clk 0:01:34.5]} 21. Ne4 {[%clk 0:01:55.6]} 21... g4 {[%clk 0:00:58.6]}
22. Nfd2 {[%clk 0:01:47.7]} 22... Nxe3 {[%clk 0:00:56.8]} 23. fxe3 {[%clk
0:01:48.6]} 23... Bh6 {[%clk 0:00:56.2]} 24. Kf2 {[%clk 0:01:47.9]} 24... f5
{[%clk 0:00:50.9]} 25. Nc5 {[%clk 0:01:46.8]} 25... f4 {[%clk 0:00:44.4]} 26.
exf4 {[%clk 0:01:33.4]} 26... Bxf4 {[%clk 0:00:45.3]} 27. Nxb7 {[%clk
0:01:31.7]} 27... Rf8 {[%clk 0:00:38.3]} 28. Kg1 {[%clk 0:01:18.5]} 28... Bxb7
{[%clk 0:00:29.7]} 29. Rc3 {[%clk 0:01:12.5]} 29... h5 {[%clk 0:00:15.6]} 30.
Nc4 {[%clk 0:01:10.3]} 30... h4 {[%clk 0:00:13.9]} 31. Ne5 {[%clk 0:01:08.2]}
31... Rf6 {[%clk 0:00:10.1]} 32. Nxg4 {[%clk 0:01:02.5]} 32... Rf7 {[%clk
0:00:08.5]} 33. Ne5 {[%clk 0:01:01.5]} 33... Rf6 {[%clk 0:00:08.1]} 34. Rf3
{[%clk 0:00:49.3]} 34... c5 {[%clk 0:00:07]} 35. Rxf4 {[%clk 0:00:45.7]} 1-0

[Event "*** Titled Tuesday Blitz"]
[Site "Chess.com"]
[Date "2020.04.07"]
[Round "1"]
[White "fpawn"]
[Black "goodluck06"]
[Result "1/2-1/2"]
[WhiteElo "2300"]
[BlackElo "2617"]
[TimeControl "180+1"]
[EndTime "13:06:53 PDT"]
[Termination "Game drawn by repetition"]

1. e4 {[%clk 0:02:56.6]} 1... c5 {[%clk 0:02:59.4]} 2. Nc3 {[%clk 0:02:56.5]}
2... Nc6 {[%clk 0:02:58.7]} 3. g3 {[%clk 0:02:57.4]} 3... g6 {[%clk 0:02:58]} 4.
Bg2 {[%clk 0:02:58.3]} 4... Bg7 {[%clk 0:02:58.5]} 5. d3 {[%clk 0:02:59]} 5...
d6 {[%clk 0:02:59]} 6. Be3 {[%clk 0:02:59.4]} 6... e6 {[%clk 0:02:58.5]} 7. f4
{[%clk 0:02:59.8]} 7... Nge7 {[%clk 0:02:57.5]} 8. Nf3 {[%clk 0:03:00.2]} 8...
Nd4 {[%clk 0:02:55.9]} 9. O-O {[%clk 0:02:59.6]} 9... O-O {[%clk 0:02:56.3]} 10.
e5 {[%clk 0:02:59.4]} 10... dxe5 {[%clk 0:02:44.9]} 11. Nxe5 {[%clk 0:02:56.3]}
11... Rb8 {[%clk 0:02:28.8]} 12. Ne4 {[%clk 0:02:55.5]} 12... b6 {[%clk
0:02:28.8]} 13. c3 {[%clk 0:02:54]} 13... Ndf5 {[%clk 0:02:28.8]} 14. Bf2 {[%clk
0:02:52.6]} 14... Ba6 {[%clk 0:02:23.5]} 15. Nc4 {[%clk 0:02:27.1]} 15... Nd5
{[%clk 0:02:01.7]} 16. Qe2 {[%clk 0:02:23.6]} 16... Qc7 {[%clk 0:01:58.4]} 17.
Rad1 {[%clk 0:02:20.3]} 17... Rbd8 {[%clk 0:01:58.1]} 18. Rfe1 {[%clk
0:02:19.2]} 18... Nfe7 {[%clk 0:01:53]} 19. Ng5 {[%clk 0:02:08.2]} 19... h6
{[%clk 0:01:43.3]} 20. Nf3 {[%clk 0:02:07.9]} 20... Nc6 {[%clk 0:01:40.8]} 21.
Nce5 {[%clk 0:02:01.4]} 21... Nxe5 {[%clk 0:01:39.4]} 22. Nxe5 {[%clk
0:02:01.4]} 22... Bxe5 {[%clk 0:01:29.8]} 23. Qxe5 {[%clk 0:01:58.2]} 23... Qxe5
{[%clk 0:01:29.3]} 24. fxe5 {[%clk 0:01:58.1]} 24... Rd7 {[%clk 0:01:23.2]} 25.
d4 {[%clk 0:01:53.4]} 25... c4 {[%clk 0:01:11.6]} 26. Bxd5 {[%clk 0:01:36.8]}
26... Rxd5 {[%clk 0:01:11.1]} 27. g4 {[%clk 0:01:36.4]} 27... Bb7 {[%clk
0:00:53.6]} 28. Bh4 {[%clk 0:01:35]} 28... Rb5 {[%clk 0:00:51.2]} 29. Rd2 {[%clk
0:01:33.2]} 29... g5 {[%clk 0:00:48.2]} 30. Bg3 {[%clk 0:01:32.5]} 30... f6
{[%clk 0:00:41.4]} 31. exf6 {[%clk 0:01:28.5]} 31... Rxf6 {[%clk 0:00:41.4]} 32.
Rf1 {[%clk 0:01:25]} 32... Rxf1+ {[%clk 0:00:33.4]} 33. Kxf1 {[%clk 0:01:25.9]}
33... Kf7 {[%clk 0:00:24.3]} 34. Be5 {[%clk 0:01:24.9]} 34... Ke7 {[%clk
0:00:22.3]} 35. Kf2 {[%clk 0:01:24.4]} 35... Rd5 {[%clk 0:00:21.7]} 36. Kg3
{[%clk 0:01:23.6]} 36... Rd8 {[%clk 0:00:20.6]} 37. Rf2 {[%clk 0:01:23.2]} 37...
Rg8 {[%clk 0:00:19.5]} 38. Rf6 {[%clk 0:01:14]} 38... Rf8 {[%clk 0:00:15.2]} 39.
Rxf8 {[%clk 0:01:06.8]} 39... Kxf8 {[%clk 0:00:15.3]} 40. h4 {[%clk 0:01:06.2]}
40... Kf7 {[%clk 0:00:14.8]} 41. hxg5 {[%clk 0:01:03.4]} 41... hxg5 {[%clk
0:00:15.7]} 42. a3 {[%clk 0:01:01.5]} 42... Bd5 {[%clk 0:00:15.3]} 43. Bb8
{[%clk 0:01:00.5]} 43... a6 {[%clk 0:00:15.4]} 44. Bc7 {[%clk 0:00:59.9]} 44...
b5 {[%clk 0:00:15.8]} 45. Bd8 {[%clk 0:00:59.9]} 45... Kg6 {[%clk 0:00:16.4]}
46. Be7 {[%clk 0:00:59.3]} 46... Bc6 {[%clk 0:00:16.6]} 47. Bc5 {[%clk
0:00:55.3]} 47... Bd5 {[%clk 0:00:17.5]} 48. Be7 {[%clk 0:00:55.3]} 48... Bc6
{[%clk 0:00:17.7]} 49. Bc5 {[%clk 0:00:55.7]} 49... Bd5 {[%clk 0:00:18.3]} 50.
Be7 {[%clk 0:00:56.2]} 1/2-1/2